bitfinex-derivatives/quotes_BNBF0:USTF0_20250603
["timestamp","ask_amount","ask_price","bid_price","bid_amount"]
[1748945442631,1.022,666.36,666.29,2.23306027]
[1748945443037,1.022,666.36,666.3,2.23306027]
[1748945443836,1.022,666.36,666.29,2.23306027]
[1748945444037,1.022,666.36,666.3,2.23306027]
[1748945445236,1.022,666.36,666.29,2.23306027]
[1748945446238,1.022,666.36,666.3,2.23306027]
[1748945446634,0.944,666.38,666.3,2.23306027]
[1748945449141,0.944,666.38,666.33,2.23306027]
[1748945449341,0.944,666.38,666.29,2.23306027]
[1748945449841,0.944,666.38,666.28,2.23306027]
[1748945450036,0.944,666.38,666.24,0.30019212]
[1748945451740,0.944,666.38,666.32,1.49012275]
[1748945451938,0.944,666.38,666.31,1.49012275]
[1748945452338,0.944,666.38,666.3,1.49012275]
[1748945452741,0.944,666.38,666.31,1.49012275]
[1748945456442,0.944,666.38,666.32,1.49012275]
[1748945458540,0.944,666.38,666.31,1.49012275]
[1748945459244,0.944,666.38,666.32,1.49012275]
[1748945459944,0.944,666.38,666.33,1.49012275]
[1748945460344,0.944,666.38,666.34,1.49012275]
[1748945461947,0.944,666.38,666.24,0.30019212]
[1748945462143,0.944,666.38,666.28,2.23306027]
[1748945462542,0.944,666.38,666.27,2.23306027]
[1748945462740,1.873,666.38,666.27,2.23306027]
[1748945463545,1.873,666.38,666.28,2.23306027]
[1748945464045,1.873,666.38,666.29,2.23306027]
[1748945464245,1.873,666.38,666.25,2.23306027]
[1748945465749,1.873,666.38,666.26,2.23306027]
[1748945466244,1.873,666.38,666.27,2.23306027]
[1748945468349,1.873,666.38,666.24,0.30019212]
[1748945468350,1.873,666.38,666.3,2.23306027]
[1748945468951,1.873,666.38,666.28,0.47494594]
[1748945468952,1.873,666.38,666.28,2.23306027]
[1748945470146,1.873,666.38,666.31,2.23306027]
[1748945470452,1.873,666.38,666.31,2.70800621]
[1748945471646,1.873,666.38,666.32,2.70800621]
[1748945473650,1.873,666.38,666.33,2.70800621]
[1748945473847,1.873,666.38,666.33,1.96543538]
[1748945474051,1.873,666.38,666.24,1.79068156]
[1748945474448,1.873,666.38,666.24,0.30019212]
[1748945474646,0.929,666.38,666.24,0.30019212]
[1748945474851,1.344,666.37,666.24,0.30019212]
[1748945476654,1.161,666.36,666.29,1.49048944]
[1748945477654,1.042,666.35,666.29,1.49048944]
[1748945478056,1.042,666.35,666.28,1.49048944]
[1748945479353,1.042,666.35,666.26,1.49048944]
[1748945481257,1.042,666.35,666.28,1.49048944]
[1748945481558,1.042,666.35,666.3,1.49048944]
[1748945481751,1.042,666.35,666.28,1.49048944]
[1748945482557,1.042,666.35,666.22,1.49048944]
[1748945483458,1.042,666.35,666.21,1.49048944]
[1748945483656,1.042,666.35,666.2,1.49048944]
[1748945484357,1.042,666.35,666.19,1.49048944]
[1748945486755,1.049,666.34,666.19,1.49048944]
[1748945487355,1.049,666.34,666.18,1.49048944]
[1748945490466,1.049,666.34,666.17,1.49048944]
[1748945492258,1.049,666.34,666.18,1.49048944]
[1748945492567,1.049,666.34,665.41,0.26117107]
[1748945492568,1.049,666.34,666.19,1.49048944]
[1748945493962,1.192,666.33,665.97,1.49048944]
[1748945494866,1.192,666.33,665.98,1.49048944]
[1748945503077,1.192,666.33,665.99,1.49048944]
[1748945503677,1.192,666.33,666.04,1.49048944]
[1748945503978,1.039,666.32,666.19,1.49048944]
[1748945504380,1.039,666.32,666.22,1.49048944]
[1748945505975,1.039,666.32,666.24,1.49048944]
[1748945506174,1.039,666.32,666.25,1.49048944]
[1748945506374,1.039,666.32,665.46,3.73769922]
[1748945506375,1.039,666.32,666.28,1.49048944]
[1748945506781,1.039,666.32,666.27,1.49048944]
[1748945507879,1.039,666.32,665.54,3.73769922]
[1748945507880,1.039,666.32,666.28,1.49048944]
[1748945509279,1.039,666.32,666.27,1.49048944]
[1748945510073,1.039,666.32,666.28,1.49048944]
[1748945513881,1.039,666.32,666.11,0.47494594]
[1748945513882,1.039,666.32,666.29,1.49048944]
[1748945516383,1.039,666.32,666.3,1.49048944]
[1748945516780,1.039,666.32,665.61,3.73769922]
[1748945516781,1.039,666.32,666.31,1.49048944]
[1748945516986,1.039,666.32,666.21,0.47494594]
[1748945517183,1.039,666.32,666.22,0.47494594]
[1748945518589,1.039,666.32,666.19,2.23306027]
[1748945518789,1.039,666.32,666.27,1.48939332]
[1748945519186,1.039,666.32,666.29,1.48939332]
[1748945519392,1.039,666.32,666.28,1.48939332]
[1748945520789,1.039,666.32,666.13,2.23306027]
[1748945520790,1.039,666.32,666.27,1.48939332]
[1748945521589,1.039,666.32,666.28,1.48939332]
[1748945524195,1.039,666.32,666.26,1.48939332]
[1748945524395,1.039,666.32,666.27,1.48939332]
[1748945527294,1.039,666.32,666.28,1.48939332]
[1748945528694,1.039,666.32,666.31,1.48939332]
[1748945529292,1.039,666.32,666.3,1.48939332]
[1748945531491,1.039,666.32,666.31,1.48939332]
[1748945532091,1.039,666.32,666.3,1.48939332]
[1748945532599,1.039,666.32,666.31,1.48939332]
[1748945533396,1.039,666.32,666.3,1.48939332]
[1748945534097,1.039,666.32,666.27,1.48939332]
[1748945537297,1.039,666.32,666.28,1.48939332]
[1748945537497,1.039,666.32,666.27,1.48939332]
[1748945539205,1.039,666.32,666.26,1.48939332]
[1748945539906,1.039,666.32,666.27,1.48939332]
[1748945542412,1.039,666.32,666.28,1.48939332]
[1748945543204,1.039,666.32,666.29,1.48939332]
[1748945544110,1.039,666.32,666.18,2.23306027]
[1748945545013,1.259,666.31,666.18,2.23306027]
[1748945547210,1.259,666.31,666.19,2.23306027]
[1748945547714,1.259,666.31,666.17,2.23306027]
[1748945547914,1.259,666.31,666.18,2.23306027]
[1748945548115,1.259,666.31,666.17,2.23306027]
[1748945548314,1.259,666.31,666.18,2.23306027]
[1748945549112,1.259,666.31,666.23,2.23306027]
[1748945549716,1.259,666.31,666.24,2.23306027]
[1748945549912,1.259,666.31,666.23,2.23306027]
[1748945550112,1.259,666.31,666.24,2.23306027]
[1748945551019,1.259,666.31,666.23,0.47494594]
[1748945551020,1.259,666.31,666.25,2.23306027]
[1748945551217,1.259,666.31,666.24,2.23306027]
[1748945551412,1.259,666.31,666.25,2.23306027]
[1748945551611,1.259,666.31,666.26,2.23306027]
[1748945551816,1.259,666.31,666.3,0.47494594]
[1748945553517,1.259,666.31,666.29,2.70800621]
[1748945553713,1.259,666.31,666.3,0.47494594]
[1748945554117,1.259,666.31,666.29,2.23306027]
[1748945554118,1.259,666.31,666.29,2.70800621]
[1748945554513,1.259,666.31,665.97,0.47700526]
[1748945555017,1.259,666.31,665.98,0.47700526]
[1748945555914,1.259,666.31,666.29,2.71925751]
[1748945556515,1.259,666.31,666.28,2.71925751]
[1748945557022,1.259,666.31,666.29,2.24268921]
[1748945557222,1.259,666.31,666.29,2.71925751]
[1748945557422,1.259,666.31,665.96,0.47700526]
[1748945557721,1.259,666.31,665.98,0.47700526]
[1748945558122,1.259,666.31,666.0,0.47700526]
[1748945558321,1.259,666.31,665.97,0.47700526]
[1748945558717,1.259,666.31,665.98,0.47700526]
[1748945559724,1.259,666.31,665.99,0.47700526]
[1748945560723,1.259,666.31,666.0,0.47700526]
[1748945561120,1.259,666.31,666.01,0.47700526]
[1748945562125,1.546,666.3,666.01,0.47700526]
[1748945562424,2.595,666.3,666.0,0.47700526]
[1748945563316,2.595,666.3,665.96,0.77732359]
[1748945563719,1.117,666.29,665.96,0.77732359]
[1748945564323,1.117,666.29,666.24,2.24253859]
[1748945565825,1.117,666.29,666.25,2.24253859]
[1748945566125,1.117,666.29,666.26,2.24253859]
[1748945566920,1.117,666.29,666.25,2.24253859]
[1748945567722,1.117,666.29,666.26,2.24253859]
[1748945570225,1.117,666.29,666.25,2.24253859]
[1748945571326,1.117,666.29,666.26,2.24253859]
[1748945571831,1.117,666.29,666.27,2.24253859]
[1748945572630,1.117,666.29,666.28,2.24253859]
[1748945572829,2.595,666.3,665.96,0.30031833]
[1748945572830,0.07598709,666.3,666.06,0.47700526]
[1748945573026,1.419,666.31,666.06,0.47700526]
[1748945574227,1.419,666.31,666.26,2.71726141]
[1748945574830,1.419,666.31,666.26,0.47621156]
[1748945575031,1.419,666.31,666.15,2.24104985]
[1748945575231,1.419,666.31,666.16,2.24104985]
[1748945575931,1.419,666.31,666.17,2.24104985]
[1748945576328,1.419,666.31,666.16,2.24104985]
[1748945580438,0.945,666.3,666.16,2.24104985]
[1748945582638,0.945,666.3,666.15,2.24104985]
[1748945583138,0.945,666.3,666.17,2.24104985]
[1748945583532,0.945,666.3,666.16,2.24104985]
[1748945583937,1.162,666.29,666.16,2.24104985]
[1748945584140,1.162,666.29,665.96,0.30031833]
[1748945584141,1.162,666.29,666.18,2.24104985]
[1748945584944,1.162,666.29,665.96,0.30031833]
[1748945585341,1.162,666.29,666.04,0.47700526]
[1748945586946,1.162,666.29,666.05,0.47700526]
[1748945587145,1.239,666.28,666.05,0.47700526]
[1748945587344,0.07116385,666.28,666.05,0.47700526]
[1748945587544,0.07116385,666.28,666.07,0.47700526]
[1748945589244,0.07116385,666.28,665.96,0.30031833]
[1748945589645,0.07116385,666.28,666.27,2.23874417]
[1748945589844,0.07116385,666.28,665.96,0.30031833]
[1748945590039,1.162,666.29,665.96,0.30031833]
[1748945590240,1.162,666.29,666.28,2.71442146]
[1748945590745,1.162,666.29,666.27,2.71442146]
[1748945591143,1.162,666.29,666.27,2.23873391]
[1748945592045,1.162,666.29,666.26,2.23873391]
[1748945592845,1.162,666.29,666.25,2.23873391]
[1748945593548,1.162,666.29,666.26,2.23873391]
[1748945593742,1.162,666.29,666.25,2.71442146]
[1748945594143,1.162,666.29,666.26,2.71442146]
[1748945595247,1.162,666.29,666.27,0.47568755]
[1748945595440,1.162,666.29,666.26,2.71442146]
[1748945595642,1.162,666.29,666.27,0.47568755]
[1748945596147,1.162,666.29,666.26,2.71442146]
[1748945596448,1.162,666.29,666.27,0.47568755]
[1748945596748,1.162,666.29,666.27,2.71442146]
[1748945597343,1.162,666.29,666.24,2.23873391]
[1748945598249,1.162,666.29,666.25,2.23873391]
[1748945598449,1.162,666.29,666.24,2.23873391]
[1748945599146,1.162,666.29,666.27,2.71442146]
[1748945599350,1.162,666.29,666.22,2.23873391]
[1748945600252,1.162,666.29,666.14,2.23873391]
[1748945600551,1.162,666.29,666.28,1.4924859]
[1748945601052,1.162,666.29,666.13,2.23873391]
[1748945601053,1.162,666.29,666.27,1.4924859]
[1748945602647,1.162,666.29,666.18,2.23873391]
[1748945604351,1.162,666.29,666.17,2.23873391]
[1748945604546,1.162,666.29,666.18,2.23873391]
[1748945604949,1.502,666.28,666.18,2.23873391]
[1748945605947,1.502,666.28,666.17,2.23873391]
[1748945606756,1.502,666.28,666.14,1.49222264]
[1748945608451,1.502,666.28,665.96,2.53905224]
[1748945608452,1.502,666.28,666.13,1.49222264]
[1748945609656,1.502,666.28,666.12,1.49222264]
[1748945610053,1.502,666.28,666.13,1.49222264]
[1748945611454,1.502,666.28,666.12,1.49222264]
[1748945614160,1.077,666.27,666.12,1.49222264]
[1748945614661,1.077,666.27,666.11,1.49222264]
[1748945614862,1.077,666.27,666.12,1.49222264]
[1748945615462,1.077,666.27,666.11,1.49222264]
[1748945616560,1.077,666.27,666.21,1.49222264]
[1748945617257,1.077,666.27,666.22,1.49222264]
[1748945617857,1.077,666.27,666.24,1.49222264]
[1748945618257,1.077,666.27,666.23,1.49222264]
[1748945618765,1.077,666.27,666.24,1.49222264]
[1748945621464,1.077,666.27,666.23,1.49222264]
[1748945621966,1.077,666.27,666.24,1.49222264]
[1748945622466,1.077,666.27,666.23,1.49222264]
[1748945623566,1.077,666.27,666.24,1.49222264]
[1748945624269,1.077,666.27,666.17,1.49222264]
[1748945624765,1.077,666.27,666.16,1.49222264]
[1748945629376,1.077,666.27,666.15,1.49222264]
[1748945629574,1.077,666.27,666.16,1.49222264]
[1748945630372,1.077,666.27,666.16,1.96791019]
[1748945631479,1.077,666.27,666.18,0.47568755]
[1748945632474,1.077,666.27,666.19,0.47568755]
[1748945633377,1.077,666.27,665.96,0.30031833]
[1748945633378,1.077,666.27,666.18,0.47568755]
[1748945634182,1.077,666.27,666.18,1.49222264]
[1748945634382,1.077,666.27,666.19,1.49222264]
[1748945634578,1.077,666.27,666.21,1.49222264]
[1748945635377,1.077,666.27,666.22,1.49222264]
[1748945635778,1.077,666.27,666.21,1.49222264]
[1748945635978,1.077,666.27,666.19,1.49222264]
[1748945637078,1.077,666.27,666.18,1.49222264]
[1748945637280,1.077,666.27,666.24,0.4761208]
[1748945638185,1.077,666.27,666.25,0.4761208]
[1748945638578,1.077,666.27,666.17,1.49222264]
[1748945639084,1.077,666.27,666.26,0.47619707]
[1748945639284,1.077,666.27,666.17,1.49222264]
[1748945640888,1.077,666.27,666.03,2.23873391]
[1748945641079,1.077,666.27,665.96,0.30031833]
[1748945641279,1.502,666.28,666.17,1.49077818]
[1748945641483,1.502,666.28,665.96,0.30031833]
[1748945641885,2.517,666.33,665.96,0.30031833]
[1748945642187,2.517,666.33,666.29,0.47648549]
[1748945642986,2.517,666.33,666.3,0.47648549]
[1748945643180,2.517,666.33,666.29,0.47648549]
[1748945643383,2.517,666.33,666.32,0.47648549]
[1748945643780,2.517,666.33,666.31,0.47648549]
[1748945644185,2.517,666.33,666.32,0.47648549]
[1748945645282,2.517,666.33,666.31,0.47648549]
[1748945645783,2.517,666.33,666.2,1.4908556]
[1748945647290,2.517,666.33,666.24,1.4908556]
[1748945647690,2.517,666.33,666.2,1.4908556]
[1748945648583,2.517,666.33,666.21,1.4908556]
[1748945648786,2.517,666.33,666.19,1.4908556]
[1748945649290,2.517,666.33,666.24,0.47648564]
[1748945651890,2.517,666.33,666.18,0.47648564]
[1748945652787,2.517,666.33,666.17,0.47648564]
[1748945653088,2.517,666.33,666.18,0.47648564]
[1748945653291,2.517,666.33,666.11,1.4908556]
[1748945654487,2.517,666.33,666.12,1.4908556]
[1748945655384,1.287,666.33,666.12,1.4908556]
[1748945656391,1.287,666.33,666.13,1.4908556]
[1748945657291,1.287,666.33,666.12,1.4908556]
[1748945657492,1.287,666.33,666.13,1.4908556]
[1748945657687,1.287,666.33,666.14,1.4908556]
[1748945658187,1.238,666.32,666.14,1.4908556]
[1748945658393,1.238,666.32,666.15,1.4908556]
[1748945659094,1.238,666.32,666.16,1.4908556]
[1748945659294,1.238,666.32,666.15,1.4908556]
[1748945660094,1.238,666.32,666.16,1.4908556]
[1748945660294,1.238,666.32,666.15,1.4908556]
[1748945660495,1.238,666.32,666.16,1.4908556]
[1748945661795,1.238,666.32,665.98,2.23628341]
[1748945661796,1.238,666.32,666.17,1.4908556]
[1748945662998,1.238,666.32,666.21,1.4908556]
[1748945663193,1.238,666.32,666.21,1.96734124]
[1748945663393,1.238,666.32,666.22,1.4908556]
[1748945663595,1.238,666.32,666.22,1.96734124]
[1748945664799,1.036,666.31,666.22,1.96734124]
[1748945665300,1.036,666.31,666.23,1.4908556]
[1748945666300,1.036,666.31,666.21,0.47648564]
[1748945666497,1.036,666.31,666.16,1.4908556]
[1748945666998,1.036,666.31,666.17,1.4908556]
[1748945667201,1.036,666.31,666.18,1.4908556]
[1748945667397,1.036,666.31,666.19,1.4908556]
[1748945668300,1.036,666.31,666.18,1.4908556]
[1748945669000,1.036,666.31,666.19,1.4908556]
[1748945669305,1.036,666.31,666.18,1.4908556]
[1748945669509,1.036,666.31,666.17,1.4908556]
[1748945670304,1.036,666.31,666.16,1.4908556]
[1748945670806,1.253,666.3,666.16,1.4908556]
[1748945671006,2.718,666.3,666.16,1.4908556]
[1748945672008,2.718,666.3,666.17,1.4908556]
[1748945672207,2.718,666.3,666.16,1.4908556]
[1748945673207,2.718,666.3,666.15,1.4908556]
[1748945674210,2.718,666.3,666.21,1.4908556]
[1748945674907,2.718,666.3,666.23,1.4908556]
[1748945675102,2.718,666.3,666.24,1.4908556]
[1748945675308,2.718,666.3,666.23,1.4908556]
[1748945675805,2.718,666.3,666.24,1.4908556]
[1748945677712,2.718,666.3,666.23,1.4908556]
[1748945683816,2.718,666.3,666.27,1.4908556]
[1748945684914,2.718,666.3,666.21,2.23628341]
[1748945685218,2.718,666.3,666.22,2.23628341]
[1748945686018,2.718,666.3,666.27,2.23628341]
[1748945687313,2.718,666.3,666.26,2.23628341]
[1748945688818,2.718,666.3,666.27,2.23628341]
[1748945689214,2.718,666.3,666.2,2.23628341]
[1748945689413,2.718,666.3,666.21,2.23628341]
[1748945690517,2.718,666.3,665.96,0.30031833]
[1748945690518,2.718,666.3,666.19,2.23628341]
[1748945691122,2.718,666.3,666.17,0.47507059]
[1748945691419,2.718,666.3,665.96,0.30031833]
[1748945691420,2.718,666.3,666.2,0.47507059]
[1748945691614,2.718,666.3,666.19,0.47507059]
[1748945692216,2.718,666.3,666.16,0.47507059]
[1748945692420,2.718,666.3,666.15,0.47507059]
[1748945692721,2.718,666.3,666.14,2.711354]
[1748945693121,2.718,666.3,666.15,0.47507059]
[1748945693319,2.718,666.3,666.14,2.711354]
[1748945693515,2.718,666.3,666.14,0.47507059]
[1748945693717,2.718,666.3,666.15,2.711354]
[1748945693920,2.718,666.3,665.96,0.30031833]
[1748945693921,2.718,666.3,666.19,0.47507059]
[1748945694418,2.718,666.3,665.96,0.30031833]
[1748945694419,2.718,666.3,666.2,0.47507059]
[1748945695823,2.718,666.3,666.19,0.47507059]
[1748945696025,2.718,666.3,666.2,0.47507059]
[1748945697525,2.718,666.3,666.21,0.47507059]
[1748945697821,2.718,666.3,666.22,2.23628341]
[1748945698018,2.718,666.3,665.96,0.30031833]
[1748945698019,2.718,666.3,666.25,2.23628341]
[1748945699122,2.718,666.3,666.29,2.23628341]
[1748945699321,2.718,666.3,666.28,2.23628341]
[1748945699726,2.718,666.3,666.29,2.23628341]
[1748945699922,1.465,666.3,666.29,2.23628341]
[1748945702423,1.465,666.3,666.27,2.23628341]
[1748945703029,1.465,666.3,666.28,2.23628341]
[1748945703226,1.465,666.3,665.96,0.30031833]
[1748945703227,1.465,666.3,666.27,2.23628341]
[1748945703726,1.465,666.3,666.29,2.23628341]
[1748945706223,1.465,666.3,666.28,2.23628341]
[1748945707126,1.465,666.3,666.29,2.23628341]
[1748945707330,1.465,666.3,666.28,2.23628341]
[1748945707630,1.465,666.3,666.25,0.47700526]
[1748945708330,1.465,666.3,666.24,0.47700526]
[1748945708737,1.465,666.3,666.23,0.4742386]
[1748945712339,1.465,666.3,666.24,0.4742386]
[1748945713834,1.465,666.3,666.25,0.4742386]
[1748945715541,1.465,666.3,666.23,0.4742386]
[1748945716041,1.465,666.3,666.22,0.4742386]
[1748945716236,1.465,666.3,666.23,0.4742386]
[1748945717037,1.465,666.3,666.24,0.4742386]
[1748945717439,1.499,666.29,666.24,0.4742386]
[1748945717639,1.499,666.29,665.96,0.30031833]
[1748945717640,1.499,666.29,666.26,1.48565405]
[1748945717943,1.499,666.29,666.23,1.48565405]
[1748945718241,1.499,666.29,666.24,1.48565405]
[1748945718442,1.499,666.29,666.23,1.48565405]
[1748945718641,1.499,666.29,666.27,1.48565405]
[1748945720236,1.499,666.29,666.17,2.2286022]
[1748945721241,1.499,666.29,666.18,2.2286022]
[1748945722742,2.835,666.28,666.21,2.2286022]
[1748945723139,2.835,666.28,666.22,2.2286022]
[1748945723337,2.835,666.28,666.23,2.2286022]
[1748945723941,2.835,666.28,666.21,2.2286022]
[1748945725243,2.835,666.28,666.22,2.2286022]
[1748945726642,2.835,666.28,666.23,2.2286022]
[1748945727942,2.835,666.28,666.22,2.2286022]
[1748945728143,2.835,666.28,666.21,2.2286022]
[1748945728543,2.835,666.28,666.22,2.2286022]
[1748945728941,2.835,666.28,666.23,2.2286022]
[1748945729143,2.835,666.28,666.25,2.2286022]
[1748945731346,2.835,666.28,666.26,2.2286022]
[1748945732546,2.835,666.28,666.19,2.2286022]
[1748945733139,2.835,666.28,666.2,2.2286022]
[1748945733747,2.835,666.28,666.21,2.2286022]
[1748945734144,2.835,666.28,666.26,0.47511275]
[1748945738149,2.835,666.28,666.19,2.2286022]
[1748945738543,2.835,666.28,666.2,2.2286022]
[1748945741356,2.835,666.28,666.21,0.47515935]
[1748945741653,2.835,666.28,666.2,0.47515935]
[1748945742254,2.835,666.28,666.21,0.47515935]
[1748945742455,2.835,666.28,666.27,0.47515935]
[1748945742754,1.45,666.28,666.27,0.47515935]
[1748945744157,1.45,666.28,665.96,0.30031833]
[1748945744158,1.45,666.28,666.22,2.2286022]
[1748945745058,1.45,666.28,666.23,2.2286022]
[1748945745659,1.45,666.28,666.21,2.2286022]
[1748945746255,1.45,666.28,666.19,2.2286022]
[1748945747060,1.45,666.28,666.17,2.2286022]
[1748945747557,0.076,666.27,666.17,2.2286022]
[1748945748963,0.076,666.27,666.16,2.2286022]
[1748945749160,0.076,666.27,666.17,2.2286022]
[1748945749359,0.076,666.27,666.16,2.2286022]
[1748945750260,0.076,666.27,666.17,2.2286022]
[1748945751157,0.076,666.27,666.17,0.47552193]
[1748945751361,0.076,666.27,666.25,0.47552193]
[1748945752059,0.076,666.27,666.14,2.2286022]
[1748945752263,0.076,666.27,666.16,2.2286022]
[1748945752465,0.076,666.27,666.25,0.4756774]
[1748945753564,0.076,666.27,666.24,0.4756774]
[1748945753961,0.076,666.27,666.23,0.4756774]
[1748945754462,0.076,666.27,666.22,0.4756774]
[1748945754863,0.076,666.27,666.21,0.4756774]
[1748945755462,0.076,666.27,666.23,0.4756774]
[1748945756164,0.076,666.27,666.24,0.4756774]
[1748945756459,0.076,666.27,665.96,0.30031833]
[1748945756460,0.076,666.27,666.22,0.4756774]
[1748945756964,0.076,666.27,666.23,0.4756774]
[1748945757160,0.076,666.27,666.22,0.4756774]
[1748945757467,0.076,666.27,666.23,0.4756774]
[1748945760266,0.076,666.27,666.22,0.4756774]
[1748945760863,0.076,666.27,666.2,0.4756774]
[1748945761059,0.076,666.27,666.16,2.2286022]
[1748945761265,0.076,666.27,666.26,0.47559185]
[1748945762062,0.076,666.27,666.15,2.2286022]
[1748945762267,0.076,666.27,666.16,2.2286022]
[1748945762665,0.076,666.27,666.2,0.47559664]
[1748945763764,0.076,666.27,666.23,0.47559664]
[1748945764866,0.076,666.27,666.24,0.47559664]
[1748945765362,0.076,666.27,666.14,2.2286022]
[1748945765363,0.076,666.27,666.25,0.47559664]
[1748945766163,0.076,666.27,666.26,0.47559664]
[1748945767063,0.076,666.27,666.22,0.47559664]
[1748945767467,0.076,666.27,666.21,0.47559664]
[1748945767867,0.076,666.27,666.22,0.47559664]
[1748945768068,0.076,666.27,666.21,0.47559664]
[1748945768268,0.076,666.27,666.22,0.47559664]
[1748945768469,0.076,666.27,666.21,0.47559664]
[1748945768663,0.076,666.27,666.22,0.47559664]
[1748945770271,0.076,666.27,666.23,0.47559664]
[1748945770469,0.076,666.27,666.24,0.47559664]
[1748945770770,0.076,666.27,666.23,0.47559664]
[1748945770968,0.076,666.27,666.19,0.47559664]
[1748945771971,0.076,666.27,666.2,0.47559664]
[1748945772379,1.45,666.28,666.2,0.47559664]
[1748945772570,1.45,666.28,666.13,2.2286022]
[1748945772571,1.45,666.28,666.17,2.2286022]
[1748945773071,1.45,666.28,666.16,2.2286022]
[1748945773277,1.45,666.28,666.17,2.2286022]
[1748945774675,0.076,666.27,666.18,2.2286022]
[1748945775675,0.076,666.27,666.17,2.2286022]
[1748945776176,0.076,666.27,666.16,2.2286022]
[1748945776380,0.076,666.27,666.26,0.47575691]
[1748945777077,0.076,666.27,665.96,0.30031833]
[1748945777078,0.076,666.27,666.2,2.2286022]
[1748945777274,0.076,666.27,665.96,0.30031833]
[1748945777275,0.076,666.27,666.22,2.2286022]
[1748945779280,0.076,666.27,666.18,2.2286022]
[1748945779991,0.076,666.27,666.25,0.47593314]
[1748945780188,0.076,666.27,666.26,0.47593314]
[1748945780591,0.076,666.27,666.17,2.2286022]
[1748945781088,0.076,666.27,666.18,2.2286022]
[1748945781986,0.076,666.27,666.19,2.2286022]
[1748945782388,0.076,666.27,666.21,2.2286022]
[1748945782588,0.076,666.27,666.22,2.2286022]
[1748945784692,0.076,666.27,666.24,2.2286022]
[1748945785187,0.076,666.27,666.25,2.2286022]
[1748945786091,0.076,666.27,666.26,2.2286022]
[1748945788189,0.076,666.27,666.26,2.23772324]
[1748945788694,0.076,666.27,665.96,0.30031833]
[1748945789293,0.076,666.27,666.0,0.47700526]
[1748945789492,0.076,666.27,666.01,0.30029579]
[1748945789995,0.076,666.27,666.13,0.47700526]
[1748945790692,0.00380213,666.27,666.23,0.47700526]
[1748945791196,0.00380213,666.27,666.25,0.47700526]
[1748945791595,0.00380213,666.27,666.13,0.47700526]
[1748945791795,0.00380213,666.27,666.15,0.47700526]
[1748945792296,0.00380213,666.27,666.17,0.47700526]
[1748945792590,0.00380213,666.27,666.17,0.87794306]
[1748945792794,0.00380213,666.27,666.18,0.4009378]
[1748945792995,0.00380213,666.27,666.19,0.4009378]
[1748945793188,0.00380213,666.27,666.2,0.4009378]
[1748945793390,0.00380213,666.27,666.21,0.4009378]
[1748945793591,0.00380213,666.27,666.17,0.47700526]
[1748945793790,0.00380213,666.27,666.18,0.87794306]
[1748945793996,0.00380213,666.27,666.19,0.4009378]
[1748945794196,0.00380213,666.27,666.21,0.47700526]
[1748945794496,0.00380213,666.27,666.23,0.47700526]
[1748945794696,0.00380213,666.27,666.23,0.87794306]
[1748945794995,0.00380213,666.27,666.24,0.4009378]
[1748945795195,0.00380213,666.27,666.25,0.4009378]
[1748945795395,0.00380213,666.27,666.26,0.4009378]
[1748945795795,0.00380213,666.27,666.23,0.47700526]
[1748945796398,0.978,666.26,666.23,0.47700526]
[1748945797295,0.978,666.26,666.24,0.87794306]
[1748945797493,0.978,666.26,666.23,0.47700526]
[1748945798398,0.978,666.26,666.24,0.4009378]
[1748945798597,0.978,666.26,666.2,0.47556089]
[1748945800595,0.13398838,666.31,666.2,0.47556089]